[Event "Torneo Nuevo Centro. Jornada 11"]
[Site "Chess.com"]
[Date "2020.08.28"]
[Round "4"]
[White "Casado Andreu, David"]
[Black "Méndez Giménez , Néstor Emmanuel"]
[Result "1-0"]
[WhiteElo "1569"]
[BlackElo "1242"]
[TimeControl "180+2"]
[EndTime "11:04:12 PDT"]
[Termination "Victoria de dave6635 por abandono"]

1. e4 {[%clk 0:03:01.9]} 1... e6 {[%clk 0:03:00.6]} 2. d4 {[%clk 0:03:02.2]}
2... d5 {[%clk 0:03:01.2]} 3. e5 {[%clk 0:03:03.4]} 3... c5 {[%clk 0:03:01.9]}
4. c3 {[%clk 0:03:05]} 4... Nc6 {[%clk 0:03:02.4]} 5. Nf3 {[%clk 0:03:06.4]}
5... Qb6 {[%clk 0:03:02.9]} 6. a3 {[%clk 0:03:07.3]} 6... f6 {[%clk 0:03:01.5]}
7. exf6 {[%clk 0:03:05.1]} 7... Nxf6 {[%clk 0:03:01.6]} 8. b4 {[%clk 0:03:07]}
8... cxb4 {[%clk 0:03:02.1]} 9. cxb4 {[%clk 0:03:01.4]} 9... Ne4 {[%clk
0:02:55.5]} 10. Bd3 {[%clk 0:02:55.8]} 10... Bd7 {[%clk 0:02:51.3]} 11. O-O
{[%clk 0:02:55.5]} 11... Nxd4 {[%clk 0:02:50.3]} 12. Nxd4 {[%clk 0:02:55.4]}
12... Qxd4 {[%clk 0:02:50]} 13. Ra2 {[%clk 0:02:39]} 13... Bd6 {[%clk
0:02:43.1]} 14. Bb2 {[%clk 0:02:36.9]} 14... Qb6 {[%clk 0:02:29.9]} 15. Bxg7
{[%clk 0:02:35.6]} 15... Rg8 {[%clk 0:02:29.3]} 16. Qh5+ {[%clk 0:02:36.6]}
16... Kd8 {[%clk 0:02:26.4]} 17. Qf7 {[%clk 0:02:22.3]} 17... Kc7 {[%clk
0:02:20.2]} 18. Rc1+ {[%clk 0:02:22.2]} 1

[Event "Torneo Nuevo Centro. Jornada 11"]
[Site "Chess.com"]
[Date "2020.08.28"]
[Round "4"]
[White "Vicent Lázaro, Elena"]
[Black "Gukasov, Artem"]
[Result "1-0"]
[WhiteElo "726"]
[BlackElo "1440"]
[TimeControl "180+2"]
[EndTime "11:04:40 PDT"]
[Termination "Victoria de Elena_15 por jaque mate"]

1. e3 {[%clk 0:01:59.1]} 1... e6 {[%clk 0:02:44.5]} 2. c4 {[%clk 0:01:58.5]}
2... d5 {[%clk 0:02:46.4]} 3. Nc3 {[%clk 0:01:57.5]} 3... Nf6 {[%clk 0:02:45.3]}
4. Bd3 {[%clk 0:01:56.9]} 4... c6 {[%clk 0:02:26.5]} 5. Bb1 {[%clk 0:01:57.3]}
5... a6 {[%clk 0:02:17.5]} 6. Qc2 {[%clk 0:01:56.7]} 6... Bb4 {[%clk 0:02:17.7]}
7. Nf3 {[%clk 0:01:54]} 7... O-O {[%clk 0:02:08.6]} 8. O-O {[%clk 0:01:48.2]}
8... Bd7 {[%clk 0:02:08.1]} 9. Nd4 {[%clk 0:01:38.5]} 9... c5 {[%clk 0:02:08.2]}
10. Nde2 {[%clk 0:01:36]} 10... Nc6 {[%clk 0:02:04.9]} 11. cxd5 {[%clk
0:01:35.1]} 11... exd5 {[%clk 0:02:04.2]} 12. Nxd5 {[%clk 0:01:33.7]} 12... Nxd5
{[%clk 0:02:04.5]} 13. Qxh7# {[%clk 0:01:34.4]} 1

[Event "Torneo Nuevo Centro. Jornada 11"]
[Site "Chess.com"]
[Date "2020.08.28"]
[Round "4"]
[White "Carbonell Sancho, Marc"]
[Black "Blanco Solaz, Ramón"]
[Result "1-0"]
[WhiteElo "1889"]
[BlackElo "1958"]
[TimeControl "180+2"]
[EndTime "11:05:18 PDT"]
[Termination "Victoria de AkaliGOD por abandono"]

1. e4 {[%clk 0:03:01.8]} 1... c5 {[%clk 0:02:59.3]} 2. Nf3 {[%clk 0:02:40.1]}
2... g6 {[%clk 0:02:58.8]} 3. d4 {[%clk 0:02:39.6]} 3... cxd4 {[%clk 0:03:00.7]}
4. Nxd4 {[%clk 0:02:41.5]} 4... Nc6 {[%clk 0:03:02]} 5. c4 {[%clk 0:02:42.5]}
5... Nf6 {[%clk 0:03:01.8]} 6. Nc3 {[%clk 0:02:42.9]} 6... d6 {[%clk 0:03:03]}
7. Be2 {[%clk 0:02:43.6]} 7... Nxd4 {[%clk 0:03:02.8]} 8. Qxd4 {[%clk
0:02:45.5]} 8... Bg7 {[%clk 0:03:04.4]} 9. Be3 {[%clk 0:02:47]} 9... O-O {[%clk
0:03:05.7]} 10. Qd2 {[%clk 0:02:48.2]} 10... Qa5 {[%clk 0:03:07.2]} 11. f3
{[%clk 0:02:41.3]} 11... Be6 {[%clk 0:03:08.6]} 12. Rc1 {[%clk 0:02:42.3]} 12...
Rfc8 {[%clk 0:03:09.4]} 13. b3 {[%clk 0:02:43.8]} 13... a6 {[%clk 0:03:10.7]}
14. Na4 {[%clk 0:02:45.3]} 14... Qxd2+ {[%clk 0:03:08.1]} 15. Kxd2 {[%clk
0:02:47.2]} 15... b5 {[%clk 0:03:05.3]} 16. Nb6 {[%clk 0:02:45]} 16... bxc4
{[%clk 0:03:05.8]} 17. Nxc8 {[%clk 0:02:43.9]} 17... Rxc8 {[%clk 0:03:03.7]} 18.
Bxc4 {[%clk 0:02:43.8]} 18... Bxc4 {[%clk 0:03:01]} 19. Rxc4 {[%clk 0:02:44.7]}
19... Rd8 {[%clk 0:03:00.7]} 20. Rc7 {[%clk 0:02:43]} 20... Kf8 {[%clk
0:02:57.8]} 21. Rhc1 {[%clk 0:02:42.4]} 21... Ne8 {[%clk 0:02:55.2]} 22. Rc8
{[%clk 0:02:39.8]} 22... Rd7 {[%clk 0:02:56.5]} 23. Kd3 {[%clk 0:02:40.6]} 23...
Bb2 {[%clk 0:02:51.3]} 24. R1c2 {[%clk 0:02:40.2]} 24... Bf6 {[%clk 0:02:42.3]}
25. Ra8 {[%clk 0:02:40.2]} 25... e6 {[%clk 0:02:33.5]} 26. Rcc8 {[%clk
0:02:40.3]} 26... Re7 {[%clk 0:02:33.7]} 27. f4 {[%clk 0:02:35.8]} 27... Bg7
{[%clk 0:02:17.5]} 28. e5 {[%clk 0:02:35.9]} 28... f6 {[%clk 0:02:16.8]} 29.
exd6 {[%clk 0:02:36.6]} 29... Rd7 {[%clk 0:02:13.3]} 30. Rxe8+ {[%clk
0:02:37.2]} 30... Kf7 {[%clk 0:02:15.2]} 31. Bc5 {[%clk 0:02:37.6]} 31... Bh6
{[%clk 0:02:05.9]} 32. Re7+ {[%clk 0:02:37.3]} 32... Rxe7 {[%clk 0:02:04.4]} 33.
dxe7 {[%clk 0:02:38.7]} 33... Bxf4 {[%clk 0:01:58.3]} 1

[Event "Torneo Nuevo Centro. Jornada 11"]
[Site "Chess.com"]
[Date "2020.08.28"]
[Round "4"]
[White "Muñoz Pantoja, Miguel"]
[Black "Serarols Mabras, Bernat"]
[Result "1-0"]
[WhiteElo "2392"]
[BlackElo "2427"]
[TimeControl "180+2"]
[EndTime "11:05:35 PDT"]
[Termination "Victoria de Indalsa por abandono"]

1. e4 {[%clk 0:03:01.9]} 1... c6 {[%clk 0:02:42.7]} 2. Nc3 {[%clk 0:03:01.2]}
2... d5 {[%clk 0:02:44.6]} 3. Nf3 {[%clk 0:03:02.3]} 3... Bg4 {[%clk 0:02:45.8]}
4. Be2 {[%clk 0:03:02.9]} 4... Nf6 {[%clk 0:02:45.8]} 5. e5 {[%clk 0:03:04]}
5... Nfd7 {[%clk 0:02:47.1]} 6. d4 {[%clk 0:03:05.5]} 6... e6 {[%clk 0:02:48.1]}
7. O-O {[%clk 0:03:06.1]} 7... c5 {[%clk 0:02:49.4]} 8. Bg5 {[%clk 0:03:06.8]}
8... Qb6 {[%clk 0:02:39]} 9. dxc5 {[%clk 0:03:07.4]} 9... Nxc5 {[%clk
0:02:38.1]} 10. Be3 {[%clk 0:03:06]} 10... Nc6 {[%clk 0:02:31.6]} 11. Nd4 {[%clk
0:03:00.7]} 11... Bxe2 {[%clk 0:02:32]} 12. Qxe2 {[%clk 0:03:02]} 12... Qd8
{[%clk 0:02:31.3]} 13. f4 {[%clk 0:02:58.4]} 13... g6 {[%clk 0:02:28.4]} 14.
Rad1 {[%clk 0:02:53.8]} 14... Be7 {[%clk 0:02:28.6]} 15. Kh1 {[%clk 0:02:51]}
15... Rc8 {[%clk 0:02:29.2]} 16. g4 {[%clk 0:02:50.6]} 16... h5 {[%clk
0:02:29.8]} 17. f5 {[%clk 0:02:50.9]} 17... hxg4 {[%clk 0:02:21.4]} 18. fxg6
{[%clk 0:02:46.9]} 18... fxg6 {[%clk 0:02:18.8]} 19. Nxc6 {[%clk 0:02:37.3]}
19... bxc6 {[%clk 0:02:15.8]} 20. Qxg4 {[%clk 0:02:38.2]} 20... Kd7 {[%clk
0:02:16.5]} 21. Rf7 {[%clk 0:02:37.9]} 21... Qe8 {[%clk 0:02:15.2]} 22. Rdf1
{[%clk 0:02:24.2]} 22... Nb7 {[%clk 0:02:07.8]} 23. Bg5 {[%clk 0:02:15.9]} 23...
Rf8 {[%clk 0:02:02.7]} 24. Rxe7+ {[%clk 0:02:04.1]} 24... Qxe7 {[%clk
0:02:03.5]} 25. Bxe7 {[%clk 0:02:06]} 25... Rxf1+ {[%clk 0:02:04.5]} 26. Kg2
{[%clk 0:02:07.1]} 26... Rf5 {[%clk 0:02:01.2]} 27. Bf6 {[%clk 0:02:05.8]} 27...
Rg8 {[%clk 0:02:01.1]} 28. Qb4 {[%clk 0:02:02.1]} 28... Kc7 {[%clk 0:02:00.2]}
29. Qe7+ {[%clk 0:02:00.3]} 1

[Event "Torneo Nuevo Centro. Jornada 11"]
[Site "Chess.com"]
[Date "2020.08.28"]
[Round "4"]
[White "Alegre Romaguera, Francesc"]
[Black "Más Ripoll, Vicente"]
[Result "1-0"]
[WhiteElo "1311"]
[BlackElo "1062"]
[TimeControl "180+2"]
[EndTime "11:05:40 PDT"]
[Termination "Victoria de Francesc_08 por jaque mate"]

1. e4 {[%clk 0:03:01.9]} 1... c5 {[%clk 0:02:59.5]} 2. Nf3 {[%clk 0:03:01.6]}
2... e6 {[%clk 0:02:59]} 3. d4 {[%clk 0:03:00.8]} 3... cxd4 {[%clk 0:02:59]} 4.
Nxd4 {[%clk 0:03:01.8]} 4... Nc6 {[%clk 0:02:59.8]} 5. Nc3 {[%clk 0:02:54]} 5...
a6 {[%clk 0:02:55.6]} 6. Be3 {[%clk 0:02:48.2]} 6... Nf6 {[%clk 0:02:52.6]} 7.
Bg5 {[%clk 0:02:44.3]} 7... Be7 {[%clk 0:02:46.3]} 8. Be2 {[%clk 0:02:41.8]}
8... Nxe4 {[%clk 0:02:40.7]} 9. Nxe4 {[%clk 0:02:32.1]} 9... Bxg5 {[%clk
0:02:38.6]} 10. Nd6+ {[%clk 0:02:32.5]} 10... Kf8 {[%clk 0:02:32.9]} 11. Bh5
{[%clk 0:02:28.7]} 11... g6 {[%clk 0:02:12.3]} 12. Qf3 {[%clk 0:02:26.5]} 12...
Qe7 {[%clk 0:01:44.1]} 13. Nxc6 {[%clk 0:01:54]} 13... Qxd6 {[%clk 0:01:31]} 14.
Bxg6 {[%clk 0:01:51.3]} 14... Qd2+ {[%clk 0:01:16.9]} 15. Kf1 {[%clk 0:01:50.3]}
15... dxc6 {[%clk 0:01:05.6]} 16. Qxf7# {[%clk 0:01:48.8]} 1

[Event "Torneo Nuevo Centro. Jornada 11"]
[Site "Chess.com"]
[Date "2020.08.28"]
[Round "4"]
[White "Rabbani Perez, Oumaima "]
[Black "Marques Montolio, Luis"]
[Result "0-1"]
[WhiteElo "726"]
[BlackElo "1472"]
[TimeControl "180+2"]
[EndTime "11:05:49 PDT"]
[Termination "Victoria de ateneomaritimo por jaque mate"]

1. e3 {[%clk 0:03:01.9]} 1... d5 {[%clk 0:03:00.5]} 2. d4 {[%clk 0:03:02.2]}
2... c6 {[%clk 0:03:01.5]} 3. b3 {[%clk 0:02:55.6]} 3... Bf5 {[%clk 0:03:01.5]}
4. Nc3 {[%clk 0:02:49.6]} 4... e6 {[%clk 0:03:02.2]} 5. Na4 {[%clk 0:02:46.3]}
5... Nd7 {[%clk 0:02:58.5]} 6. Ba3 {[%clk 0:02:40.1]} 6... Bxa3 {[%clk
0:02:56.2]} 7. Bd3 {[%clk 0:02:31.6]} 7... Bxd3 {[%clk 0:02:52.4]} 8. cxd3
{[%clk 0:02:31.8]} 8... Ngf6 {[%clk 0:02:45.6]} 9. Nf3 {[%clk 0:02:23.7]} 9...
b5 {[%clk 0:02:44]} 10. Nc3 {[%clk 0:02:18.4]} 10... Bb2 {[%clk 0:02:44.6]} 11.
Rb1 {[%clk 0:02:11.6]} 11... Bxc3+ {[%clk 0:02:45]} 12. Nd2 {[%clk 0:02:06.9]}
12... O-O {[%clk 0:02:40.1]} 13. Qc2 {[%clk 0:02:04.8]} 13... b4 {[%clk
0:02:32.8]} 14. a3 {[%clk 0:02:03.6]} 14... a5 {[%clk 0:02:33.1]} 15. axb4
{[%clk 0:02:03.8]} 15... axb4 {[%clk 0:02:34.8]} 16. Kd1 {[%clk 0:01:58.3]}
16... Ra3 {[%clk 0:02:18.3]} 17. Rc1 {[%clk 0:01:50.5]} 17... Qa5 {[%clk
0:02:18]} 18. Nb1 {[%clk 0:01:48.5]} 18... Ra2 {[%clk 0:02:16.5]} 19. Qxa2
{[%clk 0:01:43.2]} 19... Qxa2 {[%clk 0:02:15.8]} 20. Nxc3 {[%clk 0:01:43.4]}
20... Qxb3+ {[%clk 0:02:16.5]} 21. Kd2 {[%clk 0:01:40.4]} 21... bxc3+ {[%clk
0:02:16.7]} 22. Ke2 {[%clk 0:01:39.6]} 22... c5 {[%clk 0:02:09.4]} 23. Rb1
{[%clk 0:01:39.4]} 23... Qc2+ {[%clk 0:02:10.2]} 24. Kf3 {[%clk 0:01:37.7]}
24... Qxd3 {[%clk 0:02:11]} 25. dxc5 {[%clk 0:01:36.1]} 25... Nxc5 {[%clk
0:02:10.3]} 26. Rb5 {[%clk 0:01:33.4]} 26... Qe4+ {[%clk 0:02:07]} 27. Kg3
{[%clk 0:01:29.3]} 27... Qg4# {[%clk 0:02:04.7]} 0

[Event "Torneo Nuevo Centro. Jornada 11"]
[Site "Chess.com"]
[Date "2020.08.28"]
[Round "4"]
[White "Sos Andreu, Eric"]
[Black "Gil López, Alejandro"]
[Result "1-0"]
[WhiteElo "2524"]
[BlackElo "2212"]
[TimeControl "180+2"]
[EndTime "11:07:02 PDT"]
[Termination "Victoria de ericovski por abandono"]

1. d4 {[%clk 0:03:01]} 1... e5 {[%clk 0:03:00.4]} 2. dxe5 {[%clk 0:03:01.7]}
2... d6 {[%clk 0:03:01.9]} 3. Bf4 {[%clk 0:03:02.1]} 3... Nc6 {[%clk 0:03:02.6]}
4. Nf3 {[%clk 0:03:01.3]} 4... Bg4 {[%clk 0:03:02.9]} 5. Nbd2 {[%clk 0:02:38]}
5... dxe5 {[%clk 0:02:59.5]} 6. Nxe5 {[%clk 0:02:36.8]} 6... Nxe5 {[%clk
0:02:57.6]} 7. Bxe5 {[%clk 0:02:37.9]} 7... Qe7 {[%clk 0:02:58.4]} 8. Bc3 {[%clk
0:02:23.2]} 8... O-O-O {[%clk 0:02:59.1]} 9. h3 {[%clk 0:02:20.9]} 9... Bh5
{[%clk 0:02:55.8]} 10. g4 {[%clk 0:02:17]} 10... Bg6 {[%clk 0:02:57.1]} 11. Bg2
{[%clk 0:02:18.1]} 11... Nf6 {[%clk 0:02:49.2]} 12. e3 {[%clk 0:02:12.7]} 12...
Ne4 {[%clk 0:02:48.4]} 13. Bd4 {[%clk 0:02:04.5]} 13... Nxd2 {[%clk 0:02:42.9]}
14. Qxd2 {[%clk 0:02:06.4]} 14... c5 {[%clk 0:02:42.9]} 15. Qc3 {[%clk
0:02:07.4]} 15... Kb8 {[%clk 0:02:39.3]} 16. Be5+ {[%clk 0:02:05.4]} 16... Ka8
{[%clk 0:02:38.5]} 17. O-O {[%clk 0:01:52.3]} 17... f6 {[%clk 0:02:37.5]} 18.
Bg3 {[%clk 0:01:51.2]} 18... h5 {[%clk 0:02:38]} 19. Rad1 {[%clk 0:01:51.2]}
19... Rc8 {[%clk 0:02:34.6]} 20. Qc4 {[%clk 0:01:28.5]} 20... hxg4 {[%clk
0:02:33.4]} 21. hxg4 {[%clk 0:01:30.4]} 21... Bf7 {[%clk 0:02:28.8]} 22. Qb5
{[%clk 0:01:31]} 22... Be6 {[%clk 0:02:25.4]} 23. Rd3 {[%clk 0:01:03.3]} 23...
c4 {[%clk 0:01:28.3]} 24. Ra3 {[%clk 0:01:01.9]} 1

[Event "Torneo Nuevo Centro. Jornada 11"]
[Site "Chess.com"]
[Date "2020.08.28"]
[Round "4"]
[White "Pedros Viudes, Santiago"]
[Black "Martin Ayala, David"]
[Result "0-1"]
[WhiteElo "1923"]
[BlackElo "1851"]
[TimeControl "180+2"]
[EndTime "11:07:06 PDT"]
[Termination "Victoria de martinayala por abandono"]

1. d4 {[%clk 0:01:20.3]} 1... e6 {[%clk 0:03:01.9]} 2. Nf3 {[%clk 0:01:18.8]}
2... e5 {[%clk 0:03:03.8]} 3. dxe5 {[%clk 0:01:18.6]} 3... Nc6 {[%clk
0:03:00.6]} 4. Nc3 {[%clk 0:01:05.7]} 4... d6 {[%clk 0:03:01.3]} 5. exd6 {[%clk
0:01:00.4]} 5... Bxd6 {[%clk 0:03:01.8]} 6. Ne4 {[%clk 0:01:00.7]} 6... Bb4+
{[%clk 0:03:01]} 7. c3 {[%clk 0:01:01.8]} 7... Qxd1+ {[%clk 0:03:01.3]} 8. Kxd1
{[%clk 0:01:03.7]} 8... Be7 {[%clk 0:03:01.4]} 9. e3 {[%clk 0:01:03]} 9... Bf5
{[%clk 0:03:02.2]} 10. Bd3 {[%clk 0:01:00.7]} 10... O-O-O {[%clk 0:03:03]} 11.
Ke2 {[%clk 0:00:58.5]} 11... Rxd3 {[%clk 0:02:55.3]} 12. Kxd3 {[%clk 0:00:58.9]}
12... Nf6 {[%clk 0:02:56.2]} 13. Nd2 {[%clk 0:00:47.1]} 13... Rd8+ {[%clk
0:02:55.8]} 14. Ke2 {[%clk 0:00:48.5]} 14... Nxe4 {[%clk 0:02:56.5]} 15. Nxe4
{[%clk 0:00:50.4]} 15... Bxe4 {[%clk 0:02:57.4]} 16. f3 {[%clk 0:00:45]} 16...
Bd3+ {[%clk 0:02:58]} 17. Kf2 {[%clk 0:00:42.3]} 17... f5 {[%clk 0:02:58.8]} 18.
b3 {[%clk 0:00:37]} 18... Bc5 {[%clk 0:02:59.1]} 19. Rd1 {[%clk 0:00:34.3]}
19... f4 {[%clk 0:02:59.3]} 20. b4 {[%clk 0:00:31]} 20... Bb6 {[%clk 0:02:59]}
21. a4 {[%clk 0:00:32.3]} 21... a5 {[%clk 0:02:59.9]} 22. b5 {[%clk 0:00:28.7]}
22... Ne5 {[%clk 0:02:59.9]} 23. g3 {[%clk 0:00:24.3]} 23... g5 {[%clk 0:02:57]}
24. Ba3 {[%clk 0:00:18.7]} 24... Nc4 {[%clk 0:02:56.8]} 25. gxf4 {[%clk
0:00:15.9]} 25... gxf4 {[%clk 0:02:56.9]} 26. Be7 {[%clk 0:00:15.9]} 26... Rd7
{[%clk 0:02:53.7]} 27. Bg5 {[%clk 0:00:15.6]} 27... fxe3+ {[%clk 0:02:54.2]} 28.
Bxe3 {[%clk 0:00:17.5]} 28... Bxe3+ {[%clk 0:02:54.1]} 29. Kg3 {[%clk
0:00:17.8]} 29... Rg7+ {[%clk 0:02:51.5]} 30. Kh4 {[%clk 0:00:18.5]} 30... Ne5
{[%clk 0:02:47]} 31. Re1 {[%clk 0:00:12.1]} 31... Nxf3+ {[%clk 0:02:46.6]} 32.
Kh5 {[%clk 0:00:13.7]} 32... Nxe1 {[%clk 0:02:43]} 33. Rxe1 {[%clk 0:00:15.6]}
33... Bg6+ {[%clk 0:02:40.4]} 34. Kh4 {[%clk 0:00:16.5]} 34... Bf2+ {[%clk
0:02:40.7]} 0

[Event "Torneo Nuevo Centro. Jornada 11"]
[Site "Chess.com"]
[Date "2020.08.28"]
[Round "4"]
[White "Bendayán Claros, Aaron"]
[Black "Ainsa Jimenez, Lucas"]
[Result "1-0"]
[WhiteElo "1987"]
[BlackElo "1164"]
[TimeControl "180+2"]
[EndTime "11:07:13 PDT"]
[Termination "Victoria de Cuajada_Zero por jaque mate"]

1. d4 {[%clk 0:03:01.9]} 1... d5 {[%clk 0:02:59.6]} 2. e3 {[%clk 0:03:01.9]}
2... Nc6 {[%clk 0:02:57.5]} 3. Bd3 {[%clk 0:03:02.8]} 3... e5 {[%clk 0:02:57.8]}
4. dxe5 {[%clk 0:03:03.6]} 4... Nxe5 {[%clk 0:02:58.4]} 5. Be2 {[%clk
0:03:05.1]} 5... Nf6 {[%clk 0:02:54.5]} 6. Nd2 {[%clk 0:03:05.7]} 6... Bd6
{[%clk 0:02:49.2]} 7. Ngf3 {[%clk 0:03:06.2]} 7... Nxf3+ {[%clk 0:02:48.1]} 8.
Nxf3 {[%clk 0:03:02.9]} 8... O-O {[%clk 0:02:39.3]} 9. h3 {[%clk 0:03:03.2]}
9... c6 {[%clk 0:02:38.2]} 10. O-O {[%clk 0:03:03.7]} 10... Re8 {[%clk
0:02:21.7]} 11. b3 {[%clk 0:03:04.2]} 11... Qe7 {[%clk 0:02:19.9]} 12. Bb2
{[%clk 0:03:05]} 12... Nd7 {[%clk 0:02:18.7]} 13. c4 {[%clk 0:03:04.4]} 13...
dxc4 {[%clk 0:02:15]} 14. Bxc4 {[%clk 0:03:04.6]} 14... Be5 {[%clk 0:02:14.2]}
15. Nxe5 {[%clk 0:03:03.8]} 15... Nxe5 {[%clk 0:02:14.9]} 16. Be2 {[%clk
0:03:05]} 16... Qg5 {[%clk 0:02:06.9]} 17. f4 {[%clk 0:03:02.1]} 17... Qg6
{[%clk 0:02:00.3]} 18. Bxe5 {[%clk 0:03:01.3]} 18... Bxh3 {[%clk 0:01:57.5]} 19.
Bf3 {[%clk 0:03:02.2]} 19... Rad8 {[%clk 0:01:49]} 20. Qe2 {[%clk 0:03:01.5]}
20... f6 {[%clk 0:01:41.5]} 21. Bb2 {[%clk 0:03:01.9]} 21... Bf5 {[%clk
0:01:28.3]} 22. Rad1 {[%clk 0:03:02.7]} 22... Rc8 {[%clk 0:01:25.1]} 23. Qc4+
{[%clk 0:02:59]} 23... Kh8 {[%clk 0:01:12.6]} 24. Rfe1 {[%clk 0:02:59.6]} 24...
h6 {[%clk 0:01:09.3]} 25. e4 {[%clk 0:03:00.3]} 25... Be6 {[%clk 0:01:04.3]} 26.
Qf1 {[%clk 0:03:00.8]} 26... Qf7 {[%clk 0:00:55.5]} 27. f5 {[%clk 0:03:01.2]}
27... Bd7 {[%clk 0:00:56]} 28. Rd2 {[%clk 0:03:01.7]} 28... c5 {[%clk
0:00:56.4]} 29. Red1 {[%clk 0:03:02.8]} 29... Bc6 {[%clk 0:00:56.2]} 30. Qe1
{[%clk 0:03:02.3]} 30... b6 {[%clk 0:00:54.6]} 31. Qh4 {[%clk 0:03:03]} 31...
Kg8 {[%clk 0:00:47]} 32. Rd6 {[%clk 0:03:03.4]} 32... Qe7 {[%clk 0:00:28.2]} 33.
Re6 {[%clk 0:02:59.9]} 33... Qf7 {[%clk 0:00:20]} 34. Bh5 {[%clk 0:02:59.9]}
34... Qf8 {[%clk 0:00:19.5]} 35. Bxe8 {[%clk 0:03:00.3]} 35... Rxe8 {[%clk
0:00:20.1]} 36. Rxc6 {[%clk 0:03:00.9]} 36... Qe7 {[%clk 0:00:19.1]} 37. Re6
{[%clk 0:03:01.6]} 37... Qf7 {[%clk 0:00:18.3]} 38. Rxe8+ {[%clk 0:03:02.4]}
38... Qxe8 {[%clk 0:00:19.1]} 39. Qf4 {[%clk 0:03:03.7]} 39... Qf7 {[%clk
0:00:18.6]} 40. e5 {[%clk 0:03:04.9]} 40... fxe5 {[%clk 0:00:18.7]} 41. Qxe5
{[%clk 0:03:05.6]} 41... Qh5 {[%clk 0:00:18.2]} 42. Qxg7# {[%clk 0:03:05.8]} 1

[Event "Torneo Nuevo Centro. Jornada 11"]
[Site "Chess.com"]
[Date "2020.08.28"]
[Round "4"]
[White "Gutierrez Marco, Dario"]
[Black "Aymerich Rosell, Pablo"]
[Result "0-1"]
[WhiteElo "1830"]
[BlackElo "2005"]
[TimeControl "180+2"]
[EndTime "11:07:34 PDT"]
[Termination "Victoria de jasikevic por abandono"]

1. e4 {[%clk 0:03:01.9]} 1... c6 {[%clk 0:02:58.5]} 2. d4 {[%clk 0:03:02.3]}
2... d5 {[%clk 0:02:59.1]} 3. e5 {[%clk 0:03:03.6]} 3... c5 {[%clk 0:02:57.1]}
4. dxc5 {[%clk 0:03:02]} 4... e6 {[%clk 0:02:57.7]} 5. a3 {[%clk 0:03:02.3]}
5... Bxc5 {[%clk 0:02:56]} 6. b4 {[%clk 0:02:58]} 6... Be7 {[%clk 0:02:56]} 7.
Bb2 {[%clk 0:02:58.1]} 7... Nh6 {[%clk 0:02:56.3]} 8. Nf3 {[%clk 0:02:58.4]}
8... a5 {[%clk 0:02:55.9]} 9. b5 {[%clk 0:02:53.3]} 9... Nd7 {[%clk 0:02:55.7]}
10. Be2 {[%clk 0:02:51.9]} 10... O-O {[%clk 0:02:56.1]} 11. O-O {[%clk
0:02:52.3]} 11... Nc5 {[%clk 0:02:57.2]} 12. Nc3 {[%clk 0:02:48.7]} 12... b6
{[%clk 0:02:56.6]} 13. Nd4 {[%clk 0:02:39.6]} 13... Bb7 {[%clk 0:02:53.9]} 14.
f4 {[%clk 0:02:34]} 14... f6 {[%clk 0:02:54.6]} 15. a4 {[%clk 0:02:17.5]} 15...
fxe5 {[%clk 0:02:45.4]} 16. fxe5 {[%clk 0:02:19.4]} 16... Bg5 {[%clk 0:02:42.6]}
17. Kh1 {[%clk 0:02:17]} 17... Qe7 {[%clk 0:02:36.5]} 18. Nf3 {[%clk 0:02:04.4]}
18... Be3 {[%clk 0:02:31.2]} 19. Bd3 {[%clk 0:01:45.2]} 19... d4 {[%clk
0:02:27.9]} 20. Ne2 {[%clk 0:01:39]} 20... Ng4 {[%clk 0:02:22.3]} 21. Bxd4
{[%clk 0:01:22.8]} 21... Bxf3 {[%clk 0:02:02]} 22. gxf3 {[%clk 0:00:56.9]} 22...
Bxd4 {[%clk 0:01:59.8]} 23. Nxd4 {[%clk 0:00:55.9]} 23... Ne3 {[%clk 0:01:57.3]}
24. Qe2 {[%clk 0:00:54.5]} 24... Nxf1 {[%clk 0:01:57.7]} 25. Rxf1 {[%clk
0:00:56.4]} 25... Qh4 {[%clk 0:01:52.1]} 26. Qe3 {[%clk 0:00:37.3]} 26... Rad8
{[%clk 0:01:46.9]} 27. c3 {[%clk 0:00:34.8]} 27... Qh3 {[%clk 0:01:33.1]} 28.
Bb1 {[%clk 0:00:22]} 28... Qxf1+ {[%clk 0:01:30.9]} 0

[Event "Torneo Nuevo Centro. Jornada 11"]
[Site "Chess.com"]
[Date "2020.08.28"]
[Round "4"]
[White "Donate Peris, Jose Manuel"]
[Black "del Campo Hernández, Ángel "]
[Result "1-0"]
[WhiteElo "1519"]
[BlackElo "1122"]
[TimeControl "180+2"]
[EndTime "11:07:36 PDT"]
[Termination "Victoria de cheryme por abandono"]

1. d4 {[%clk 0:03:01.9]} 1... Nf6 {[%clk 0:02:57.9]} 2. c4 {[%clk 0:03:02]} 2...
e5 {[%clk 0:02:58.4]} 3. dxe5 {[%clk 0:03:00.5]} 3... Ng4 {[%clk 0:02:57.2]} 4.
Nf3 {[%clk 0:02:49]} 4... Nc6 {[%clk 0:02:53.8]} 5. e3 {[%clk 0:02:46.7]} 5...
Ngxe5 {[%clk 0:02:50.7]} 6. Nxe5 {[%clk 0:02:46.4]} 6... Nxe5 {[%clk 0:02:50.9]}
7. Nc3 {[%clk 0:02:46.3]} 7... Bb4 {[%clk 0:02:42]} 8. Bd2 {[%clk 0:02:43.9]}
8... Be7 {[%clk 0:02:17.9]} 9. f4 {[%clk 0:02:38.4]} 9... Ng6 {[%clk 0:02:12.3]}
10. Be2 {[%clk 0:02:36]} 10... Bh4+ {[%clk 0:02:10.2]} 11. g3 {[%clk 0:02:35.6]}
11... Be7 {[%clk 0:02:10.1]} 12. O-O {[%clk 0:02:32.9]} 12... d6 {[%clk
0:02:08.7]} 13. e4 {[%clk 0:02:29.9]} 13... Bh3 {[%clk 0:02:02.1]} 14. Rf2
{[%clk 0:02:23.9]} 14... Nxf4 {[%clk 0:01:48.7]} 15. Bxf4 {[%clk 0:02:13.8]}
15... Bh4 {[%clk 0:01:45.8]} 16. gxh4 {[%clk 0:02:08.4]} 16... Qxh4 {[%clk
0:01:45.6]} 17. Bg3 {[%clk 0:02:08.7]} 17... Qxe4 {[%clk 0:01:43.6]} 18. Bf3
{[%clk 0:02:06.3]} 18... Qxc4 {[%clk 0:01:38.1]} 19. Qe1+ {[%clk 0:01:57.4]}
19... Kd7 {[%clk 0:01:35.7]} 20. Rc1 {[%clk 0:01:53.5]} 20... Rhe8 {[%clk
0:01:30.9]} 21. Qd2 {[%clk 0:01:47.8]} 21... Rab8 {[%clk 0:01:05]} 22. Bg2
{[%clk 0:01:38.2]} 22... Bg4 {[%clk 0:01:01.9]} 23. Bf1 {[%clk 0:01:20.5]} 23...
Qb4 {[%clk 0:00:47.9]} 24. Rxf7+ {[%clk 0:01:17]} 24... Ke6 {[%clk 0:00:46.1]}
25. Rf4 {[%clk 0:01:10.2]} 25... Qb6+ {[%clk 0:00:44.5]} 26. Bf2 {[%clk
0:01:07.1]} 26... Qxf2+ {[%clk 0:00:38.9]} 1